Cogmind - Beta 13 @@@ ROGUE MODE // 2024.05.18 @ 18:45:29 Player: Martoko Result: Destroyed by G-47 Trooper with Particle Gun Performance ------------- Evolutions (2) 1000 Regions Visited (7) 1400 Robots Destroyed (37) 185 Value Destroyed (1011) 1011 Prototype IDs (1) 20 Alien Tech Used (0) 0 Bonus (300) 300 TOTAL SCORE: 3916 Bonus ------- Aligned with FarCom 300 Cogmind --------- Core Integrity 0/550 Matter 251/300 Energy 99/100 System Corruption 0% Temperature Cool (9) Movement Core (50) Location -8/Materials Parts ------- > --- POWER (1) -------- (None) > --- PROPULSION (4) --- (None) > --- UTILITY (4) ------ 0b10 Alert Chip Target Analyzer > --- WEAPON (2) ------- Katana > --- INVENTORY (5) ---- (None) Peak State ------------ > --- POWER ------------ Light Nuclear Core > --- PROPULSION ------- Aluminum Leg Aluminum Leg Aluminum Leg Aluminum Leg > --- UTILITY ---------- Improved Terrain Scanner Terrain Scan Processor 0b10 Alert Chip Hardened Medium Armor Plating > --- WEAPON ----------- Heavy Laser Particle Cannon > --- INVENTORY -------- Improved Ion Engine Target Analyzer Reactive Plating Reflective Plating Mining Laser [Rating: 28] Favorites ----------- Power Light Ion Engine Engine Light Ion Engine Power Core Light Nuclear Core Propulsion Aluminum Leg Leg Aluminum Leg Wheel Wheel Utility Improved Terrain Scanner Device Improved Terrain Scanner Processor Terrain Scan Processor Protection Hardened Medium Armor Plating Weapon Mining Laser Energy Gun Heavy Laser Energy Cannon Particle Cannon Ballistic Gun Assault Rifle Special Weapon Mining Laser Slashing Weapon Katana Build | -11 -10 -10 -9 -9 -9 -8 -8 ------- Run | Yrd Mat Min Mat Min Exi Min Mat Slots Evolved 4 | . . . 2 . . . 2 Power . | . . . . . . . . Propulsion 2 | . . . 2 . . . . Utility 2 | . . . . . . . 2 Weapon . | . . . . . . . . Parts Attached 59 | 13 4 2 13 7 4 2 14 Power 11 | 4 . . 4 2 . . 1 Engine 10 | 4 . . 4 1 . . 1 Core 1 | . . . . 1 . . . Reactor . | . . . . . . . . Propulsion 14 | 4 . 1 5 3 . . 1 Treads . | . . . . . . . . Leg 13 | 3 . 1 5 3 . . 1 Wheel 1 | 1 . . . . . . . Hover . | . . . . . . . . Flight . | . . . . . . . . Utility 11 | 1 3 . 1 . 1 . 5 Device 4 | 1 2 . . . . . 1 Storage . | . . . . . . . . Processor 4 | . 1 . 1 . 1 . 1 Hackware . | . . . . . . . . Protection 3 | . . . . . . . 3 Artifact . | . . . . . . . . Weapon 23 | 4 1 1 3 2 3 2 7 Energy Gun 6 | . . . . 1 1 2 2 Energy Cannon 3 | . 1 . 1 . . . 1 Ballistic Gun 8 | 3 . 1 2 . 1 . 1 Ballistic Cannon . | . . . . . . . . Launcher . | . . . . . . . . Special Weapon 5 | 1 . . . 1 1 . 2 Impact Weapon . | . . . . . . . . Slashing Weapon 1 | . . . . . . . 1 Piercing Weapon . | . . . . . . . . Special Melee Weapon . | . . . . . . . . Unidentified Prototypes 1 | . . . . . 1 . . Parts Lost 29 | 1 . 1 8 1 . 1 17 Power 6 | 1 . . 3 . . . 2 Propulsion 9 | . . . 3 1 . . 5 Utility 6 | . . . 1 . . . 5 Weapon 8 | . . 1 1 . . 1 5 Highest Loss Streak 11 | 1 . 1 4 2 . 1 11 To Critical Strikes . | . . . . . . . . Average Slot Usage (%) 96 | . 98 97 78 98 100 99 95 Engine 2 | . 14 14 7 4 . . . Core 7 | . . . . 6 11 11 8 Leg 37 | . 28 28 27 42 44 44 33 Device 10 | . 23 28 17 11 9 . 8 Processor 13 | . 2 . 3 11 12 22 17 Protection 2 | . . . . . . . 9 Energy Gun 4 | . . . . 1 . 10 8 Energy Cannon 8 | . 11 14 10 11 11 11 1 Ballistic Gun 2 | . 2 11 11 4 1 . . Special Weapon 6 | . 14 . . 5 9 . 6 Naked Turns . | . . . . . . . . Heaviest Build 25 | 7 10 11 13 15 13 13 25 Greatest Support 40 | 20 20 20 40 40 40 40 40 Greatest Overweight (x) 7 | . . . 1 . . . 7 Average Overweight (x) . | . . . . . . . . Largest Inventory Capacity 5 | 5 5 5 5 5 5 5 5 Average Capacity 5 | 5 5 5 5 5 5 5 5 Most Carried 5 | 5 5 5 5 5 5 5 5 Average Carried 4 | 4 4 4 3 4 4 4 4 Final Capacity 5 | 5 5 5 5 5 5 5 5 Final Carried 5 | 5 5 4 5 5 5 5 . Class Distribution -------------------- 53% | Mutant 30% | Scavenger-Mutant 15% | Scavenger-Skirmisher Dominant Class ---------------- Mutant | -10/Materials Mutant | -10/Mines Mutant | -9/Materials Scavenger-Mutant | -9/Mines Scavenger-Mutant | -9/Exiles Scavenger-Mutant | -8/Mines Scavenger-Skirmisher | -8/Materials Resources | -11 -10 -10 -9 -9 -9 -8 -8 ----------- Run | Yrd Mat Min Mat Min Exi Min Mat Matter Collected 1022 | 377 109 39 249 61 . 83 104 Remotely . | . . . . . . . . Salvage Created 1245 | 77 20 53 558 88 . 182 267 Parts 73 | 8 1 7 31 6 . 5 15 Haulers Intercepted . | . . . . . . . . Recyclers Shooed . | . . . . . . . . Parts Field Recycled . | . . . . . . . . Retrieved Matter . | . . . . . . . . Parts Self-Destructed . | . . . . . . . . Prevented . | . . . . . . . . Kills | -11 -10 -10 -9 -9 -9 -8 -8 ------- Run | Yrd Mat Min Mat Min Exi Min Mat Combat Hostiles Destroyed 33 | 1 . 3 15 2 . 3 9 Melee 1 | . . . . . . . 1 Guns 14 | 1 . . 5 2 . 1 5 Cannons 17 | . . 3 10 . . 2 2 Classes Destroyed 7 | 2 1 1 2 . . . 1 Builder 1 | . . . 1 . . . . Tunneler 2 | 2 . . . . . . . Watcher 1 | . 1 . . . . . . Swarmer 12 | . . 3 4 . . . 5 Grunt 18 | 1 . . 9 2 . 3 3 Duelist 1 | . . . . . . . 1 Sentry 2 | . . . 2 . . . . Best Kill Streak 5 | 1 1 3 5 2 . 3 5 Combat Bots Only 5 | 1 . 3 5 2 . 3 5 Max Kills in Single Turn 2 | 1 1 1 2 1 . 1 1 Gunslinging . | . . . . . . . . Exploded . | . . . . . . . . Melee 1 | . . . . . . . 1 Uniques/NPCs Destroyed . | . . . . . . . . Combat | -11 -10 -10 -9 -9 -9 -8 -8 -------- Run | Yrd Mat Min Mat Min Exi Min Mat Hostile Shots Fired 317 | 1 7 10 111 3 . 13 172 Missed 58 | 1 . 2 26 1 . 3 25 Damage Taken 3205 | 234 78 65 986 30 . 176 1636 Core 913 | 100 32 17 172 18 . 19 555 Absorbed by Shields . | . . . . . . . . Ignored by Resistances 52 | . . . . . . . 52 Core Remaining (%) 49 | 60 . 40 . . . 47 . Volleys Fired 390 | 189 26 6 48 8 37 10 66 Largest 2 | 2 2 1 2 2 1 2 2 Hottest 169 | 120 168 68 91 168 100 137 169 Shots Fired 476 | 200 31 6 95 14 37 19 74 Gun 123 | 23 4 . 47 3 . 9 37 Cannon 83 | . 5 6 48 8 . 10 6 Launcher . | . . . . . . . . Special 270 | 177 22 . . 3 37 . 31 Kinetic 91 | 23 4 . 47 2 . 6 9 Thermal 385 | 177 27 6 48 12 37 13 65 Explosive . | . . . . . . . . Electromagnetic . | . . . . . . . . Robot Hit Streak 16 | 3 3 3 12 12 . 16 13 Robot Miss Streak 6 | 2 3 1 3 . . 2 6 Penetration Max . | . . . . . . . . Secondary Targets . | . . . . . . . . Shots Hit Robots 131 | 9 4 5 62 4 . 14 33 Core Hits 56 | 4 1 3 24 3 . 7 14 Critical Kills . | . . . . . . . . Critical Parts Destroyed 1 | . . . . . . . 1 Critical Strikes 5 | . . . . . . 1 4 Burn 3 | . . . . . . 1 2 Destroy 1 | . . . . . . . 1 Sever 1 | . . . . . . . 1 Melee Attacks 5 | . . . . . . . 5 Impact . | . . . . . . . . Slashing 5 | . . . . . . . 5 Piercing . | . . . . . . . . Sneak Attacks . | . . . . . . . . Combat Hostiles . | . . . . . . . . Follow-up Attacks . | . . . . . . . . Damage Inflicted 2376 | 96 67 101 1109 72 . 251 680 Guns 1086 | 96 26 . 373 31 . 128 432 Cannons 1164 | . 41 101 736 41 . 123 122 Explosions . | . . . . . . . . Melee 126 | . . . . . . . 126 Ramming . | . . . . . . . . Kinetic 674 | 96 26 . 373 31 . 90 58 Thermal 1576 | . 41 101 736 41 . 161 496 Explosive . | . . . . . . . . Electromagnetic . | . . . . . . . . Impact . | . . . . . . . . Slashing 126 | . . . . . . . 126 Piercing . | . . . . . . . . Highest Corruption 5 | 5 5 5 . . . . . Average Corruption 5 | 5 5 5 . . . . . Corruption Purged . | . . . . . . . . Corruption Blocked . | . . . . . . . . Effects 21 | 9 11 1 . . . . . Message Errors 1 | . 1 . . . . . . Matter Fused 10 | 5 4 1 . . . . . Heat Flow Errors 2 | . 2 . . . . . . Energy Discharges 3 | 1 2 . . . . . . Parts Fused 1 | 1 . . . . . . . Misfires 3 | 2 1 . . . . . . Alerts 1 | . 1 . . . . . . Overload Shots . | . . . . . . . . Overflow Damage 23 | . . 1 . . . . 22 Projectiles 1 | . . 1 . . . . . Explosions . | . . . . . . . . Melee 22 | . . . . . . . 22 Knockbacks . | . . . . . . . . Impact . | . . . . . . . . Kinetic . | . . . . . . . . Secondary . | . . . . . . . . Self-Inflicted Damage . | . . . . . . . . Shots . | . . . . . . . . Rammed . | . . . . . . . . Targets Rammed . | . . . . . . . . Kicked . | . . . . . . . . Crushed . | . . . . . . . . Highest Temperature 599 | 204 441 122 341 69 126 375 599 Average Temperature 89 | 66 80 54 99 32 45 185 175 Received Heat Transfer 1239 | . 42 . 480 15 . 144 558 Effects 20 | . . . 1 . . 4 15 Shutdowns 2 | . . . . . . . 2 Energy Bleed 3 | . . . 1 . . . 2 Interference 4 | . . . . . . 3 1 Matter Decay 2 | . . . . . . . 2 Short Circuit 1 | . . . . . . . 1 Damage (minor) 2 | . . . . . . 1 1 Damage (major) 6 | . . . . . . . 6 Siege Activations . | . . . . . . . . Robots Corrupted . | . . . . . . . . Combat Hostiles . | . . . . . . . . Parts Fried . | . . . . . . . . Impact Corruptions . | . . . . . . . . Robots Melted 1 | . . . . . . . 1 Combat Hostiles 1 | . . . . . . . 1 Parts Melted 2 | . . . 1 . . . 1 Heat Transferred 3219 | . 74 185 1332 74 . 370 1184 Parts Sabotaged . | . . . . . . . . Parts Stolen . | . . . . . . . . Parts Stripped . | . . . . . . . . Power Chain Reactions . | . . . . . . . . Alert | -11 -10 -10 -9 -9 -9 -8 -8 ------- Run | Yrd Mat Min Mat Min Exi Min Mat Peak Influence 161 | 25 42 66 161 99 . 46 52 Initial 58 | . . 6 25 58 . . . Average 12 | 1 27 58 70 96 . 20 4 Maximum Alert Level . | . . . . . . . . Low Security (%) 100 | 100 100 100 100 100 . 100 100 Level 1 . | . . . . . . . . Level 2 . | . . . . . . . . Level 3 . | . . . . . . . . Level 4 . | . . . . . . . . Level 5 . | . . . . . . . . High Security . | . . . . . . . . Max Security . | . . . . . . . . Squads Dispatched 6 | . 2 . 4 . . . . Investigation 2 | . 1 . 1 . . . . Extermination . | . . . . . . . . Reinforcement 4 | . 1 . 3 . . . . Assault . | . . . . . . . . Garrison . | . . . . . . . . Intercept . | . . . . . . . . Searches Triggered . | . . . . . . . . Construction Impeded . | . . . . . . . . Haulers Reinforced . | . . . . . . . . Active Scanning Responses . | . . . . . . . . Cargo Convoy Interrupts . | . . . . . . . . Stealth | -11 -10 -10 -9 -9 -9 -8 -8 --------- Run | Yrd Mat Min Mat Min Exi Min Mat Distress Signals 5 | . 1 . 1 . . . 3 Communications Jammed . | . . . . . . . . Distress Signals . | . . . . . . . . Times Spotted 47 | 1 4 2 21 2 . 3 14 Peak Tracking Total 7 | 1 4 2 5 2 . 3 7 Tactical Retreats 2 | . . . 2 . . . . Traps | -11 -10 -10 -9 -9 -9 -8 -8 ------- Run | Yrd Mat Min Mat Min Exi Min Mat Traps Triggered 1 | . 1 . . . . . . Indirectly . | . . . . . . . . Trap Hack Attempts . | . . . . . . . . Triggered . | . . . . . . . . Disarmed . | . . . . . . . . Reprogrammed . | . . . . . . . . Reused . | . . . . . . . . Traps Extracted . | . . . . . . . . Installed . | . . . . . . . . Triggered . | . . . . . . . . Machines | -11 -10 -10 -9 -9 -9 -8 -8 ---------- Run | Yrd Mat Min Mat Min Exi Min Mat Machines Disabled . | . . . . . . . . Max in Single Turn . | . . . . . . . . Machines Repaired . | . . . . . . . . Machines Dismantled . | . . . . . . . . Machines Sabotaged . | . . . . . . . . Overloaded Fab Kills . | . . . . . . . . Hacking | -11 -10 -10 -9 -9 -9 -8 -8 --------- Run | Yrd Mat Min Mat Min Exi Min Mat Machines Accessed 9 | . 2 1 2 . 4 . . Terminals 5 | . 2 1 2 . . . . Fabricators . | . . . . . . . . Repair Stations . | . . . . . . . . Recycling Units . | . . . . . . . . Scanalyzers . | . . . . . . . . Garrison Access . | . . . . . . . . Total Hacks 60 | . 4 3 4 . 49 . . Successful 57 | . 3 1 4 . 49 . . Failed 3 | . 1 2 . . . . . Catastrophic 1 | . 1 . . . . . . Database Lockouts . | . . . . . . . . Manual 19 | . 4 3 2 . 10 . . Terminals 11 | . 4 3 4 . . . . Fabricators . | . . . . . . . . Repair Stations . | . . . . . . . . Recycling Units . | . . . . . . . . Scanalyzers . | . . . . . . . . Garrison Access . | . . . . . . . . Terminal Hacks 57 | . 3 1 4 . 49 . . Record 49 | . . . . . 49 . . Alert Level 4 | . 1 1 2 . . . . Unreport Threat 3 | . 1 . 2 . . . . Registered Components 1 | . 1 . . . . . . Fabricator Hacks . | . . . . . . . . Repair Station Hacks . | . . . . . . . . Recycling Unit Hacks . | . . . . . . . . Scanalyzer . | . . . . . . . . Garrison Access Hacks . | . . . . . . . . Unauthorized Hacks . | . . . . . . . . Terminals . | . . . . . . . . Fabricators . | . . . . . . . . Repair Stations . | . . . . . . . . Recycling Units . | . . . . . . . . Scanalyzers . | . . . . . . . . Garrison Access . | . . . . . . . . Data Cores Recovered . | . . . . . . . . Used . | . . . . . . . . Hacking Detections 5 | . 2 1 2 . . . . Full Trace Events 1 | . . . 1 . . . . Feedback Events . | . . . . . . . . Feedback Blocked . | . . . . . . . . Robot Schematics Acquired . | . . . . . . . . Robots Built . | . . . . . . . . Authchips . | . . . . . . . . Time . | . . . . . . . . Total Robot Build Rating . | . . . . . . . . Part Schematics Acquired . | . . . . . . . . Parts Built . | . . . . . . . . Authchips . | . . . . . . . . Time . | . . . . . . . . Total Part Build Rating . | . . . . . . . . Parts Repaired . | . . . . . . . . Time . | . . . . . . . . Parts Recycled . | . . . . . . . . Recycled Matter . | . . . . . . . . Retrieved Matter . | . . . . . . . . Retrieved Components . | . . . . . . . . Parts Scanalyzed . | . . . . . . . . Part Schematics Acquired . | . . . . . . . . Parts Damaged . | . . . . . . . . Bothacking | -11 -10 -10 -9 -9 -9 -8 -8 ------------ Run | Yrd Mat Min Mat Min Exi Min Mat Used RIF Installer . | . . . . . . . . Robots Hacked . | . . . . . . . . Non-combat . | . . . . . . . . Combat . | . . . . . . . . Robot Hacks Applied . | . . . . . . . . Relay Couplers Released . | . . . . . . . . Fabnet Peak Effective % . | . . . . . . . . Robots Rewired . | . . . . . . . . Allies Hacked . | . . . . . . . . Hacks Repelled . | . . . . . . . . Allies | -11 -10 -10 -9 -9 -9 -8 -8 -------- Run | Yrd Mat Min Mat Min Exi Min Mat Total Allies . | . . . . . . . . Largest Group . | . . . . . . . . Highest-Rated Group . | . . . . . . . . Highest-Rated Ally . | . . . . . . . . Total Orders . | . . . . . . . . Ally Attacks . | . . . . . . . . Total Damage . | . . . . . . . . Kills . | . . . . . . . . Allies Corrupted . | . . . . . . . . Allies Melted . | . . . . . . . . Intel | -11 -10 -10 -9 -9 -9 -8 -8 ------- Run | Yrd Mat Min Mat Min Exi Min Mat Robot Analysis Total . | . . . . . . . . Derelict Logs Recovered . | . . . . . . . . Drone Launches . | . . . . . . . . Drone Recoveries . | . . . . . . . . Exploration | -11 -10 -10 -9 -9 -9 -8 -8 ------------- Run | Yrd Mat Min Mat Min Exi Min Mat Turns Passed 10325 | 4552 470 55 683 84 1959 799 1723 Spaces Moved 3548 | 956 259 33 339 35 1187 585 154 Core 28 | 25 . . . . . . 3 Treads . | . . . . . . . . Legs 3520 | 931 259 33 339 35 1187 585 151 Wheels . | . . . . . . . . Hover . | . . . . . . . . Flight . | . . . . . . . . Fastest Speed 50 | 50 120 120 120 120 120 120 50 Average Speed 119 | 118 120 120 120 120 120 120 130 Slowest Speed 400 | 120 120 120 190 120 120 120 400 Overloaded Moves . | . . . . . . . . Propulsion Burnouts . | . . . . . . . . Robots Hopped . | . . . . . . . . Cave-ins Triggered 1 | 1 . . . . . . . Exploration Rate (%) 34 | 35 31 7 17 3 94 79 10 Regions Visited 7 Branch Regions 4 Pre-discovered Areas 1 | . . . . . 1 . . Known Exits Taken . | . . . . . . . . Unknown Exits Taken 7 | 1 1 1 1 1 1 1 . Scrap Searched 2 | . . . . . . 2 . Spaces Dug 100 | 49 17 . . 3 15 . 16 Terrain Destroyed 161 | 75 20 . 4 3 30 . 29 Melee . | . . . . . . . . Projectile 161 | 75 20 . 4 3 30 . 29 AOE . | . . . . . . . . Terrain Rammed . | . . . . . . . . Walls Destroyed . | . . . . . . . . Machines Disabled . | . . . . . . . . Actions | -11 -10 -10 -9 -9 -9 -8 -8 --------- Run | Yrd Mat Min Mat Min Exi Min Mat Total 8595 | 3825 345 42 519 57 1610 663 1534 Wait 4527 | 2654 46 2 105 1 368 62 1289 Move 3541 | 955 258 32 338 34 1186 584 154 Hop . | . . . . . . . . Pick Up 35 | 9 6 . 8 3 2 2 5 Fast Attach 22 | 6 1 . 8 3 . 2 2 Attach 22 | 3 1 1 5 1 1 . 10 Detach 3 | 2 . . 1 . . . . Swap 15 | 4 2 1 . 3 3 . 2 Drop 24 | 3 5 . 6 4 2 3 1 Fire 390 | 189 26 6 48 8 37 10 66 Melee 5 | . . . . . . . 5 Ram . | . . . . . . . . Kick . | . . . . . . . . Crush . | . . . . . . . . Escape Stasis . | . . . . . . . . Rewire 11 | . . . . . 11 . . Trap . | . . . . . . . . Miscellaneous . | . . . . . . . . Route ------- -11/Scrapyard -10/Materials -10/Mines -9/Materials -9/Mines (discovered 2 exits: [Mat] / *Exi) -9/Exiles (discovered 2 exits: [*Min x2]) -8/Mines -8/Materials History --------- Turn | Location | Event 2 | -11/Scrapyard | Met Revision 17 96 | -11/Scrapyard | Discovered new exit (range 8) 4057 | -11/Scrapyard | Crushed by falling debris 4553 | -11/Scrapyard | Entered Materials 4554 | -10/Materials | Build established: Mutant 4968 | -10/Materials | Discovered new exit (range 12) 5013 | -10/Materials | Core integrity fell below 50% 5023 | -10/Materials | Entered Mines 5065 | -10/Mines | Discovered new exit (range 9) 5078 | -10/Mines | Entered Materials 5078 | -9/Materials | Evolved 2 slots: Propulsion x2 5534 | -9/Materials | Lost 4 parts (1p1n1u1w) 5738 | -9/Materials | Discovered new exit (range 14) 5761 | -9/Materials | Entered Mines 5784 | -9/Mines | Discovered new exit (range 7) 5803 | -9/Mines | Met a Derelict bent on vengeance 5812 | -9/Mines | Discovered new exit (range 14) 5819 | -9/Mines | Build established: Scavenger-Mutant 5845 | -9/Mines | Entered Exiles 5869 | -9/Exiles | Discovered new exit (range 15) 5885 | -9/Exiles | Met 8R-AWN 5928 | -9/Exiles | Met EX-HEX 6073 | -9/Exiles | Met EX-DEC 6109 | -9/Exiles | Learned location of Zion (-7) 6179 | -9/Exiles | Discovered new exit (range 12) 6291 | -9/Exiles | Visited The Gauntlet 6604 | -9/Exiles | Met EX-BIN 7455 | -9/Exiles | Aligned with FarCom system 7456 | -9/Exiles | Given EX-Vault access code 7490 | -9/Exiles | Opened EX-Vault 7510 | -9/Exiles | Found Prototype Processor 7517 | -9/Exiles | Identified 0b10 Alert Chip 7545 | -9/Exiles | Warned to stay clear of 0b10 Research branches 7804 | -9/Exiles | Left Exiles lab with 0b10 Alert Chip 7804 | -9/Exiles | Entered Mines 7832 | -8/Mines | Core integrity fell below 50% 8580 | -8/Mines | Discovered new exit (range 12) 8603 | -8/Mines | Entered Materials 8603 | -8/Materials | Evolved 2 slots: Utility x2 8889 | -8/Materials | Build established: Scavenger-Skirmisher 10234 | -8/Materials | Lost 11 parts (1p4n3u3w) 10297 | -8/Materials | Core integrity fell below 50% 10316 | -8/Materials | Core integrity fell below 20% 10326 | -8/Materials | Destroyed by G-47 Trooper with Particle Gun Last Messages --------------- Reflective Plating destroyed. Critical hit (Burn: +37). G-47 Trooper suffers critical hit (Burn). Particle Gun destroyed. Reactive Plating destroyed. Bump into an enemy to attack with the active melee weapon. Even while active, melee weapons do not fire together with ranged weapons in the same volley. Imp. Ion Engine destroyed. G-47 Trooper heat damages Aluminum Leg, Particle Gun, Lgt. Nuclear Core, Aluminum Leg. G-47 Trooper suffers critical hit (Destroy). Destroyed Aluminum Leg. Lgt. Assault Rifle destroyed. Imp. Aluminum Leg destroyed. G-50 Soldier Hvy. Laser severed. Destroyed Lgt. Nuclear Core. G-47 Trooper destroyed. [Achievement: First Step to Greatness] Map ----- +----------------------------------------------------+ | ?????????????????????????????????????????????????? | | ?????????????????????????????????????????????????? | | ?????????????????????????????????????????????????? | | ?????????????????????????????????????????????????? | | ?????????????????????????????????????????????????? | | ?????????????????????????????????????????????????? | | ?????????????????????????????????????????????????? | | ???????????????????????????#?????????????????????? | | ??????????????????????###########????????????????? | | ???????????????????? ##??????????????? | | ?????????????????? # """ """ """ ####????????????? | | ????????????????? # """ """ """ #####???????????? | | ?????????????? + """ """ """ ######??????????? | | ??????????????? # #######??????? # | | ??????????????## # ####### ????????? | | ?????????????? # ##################### ???????? | | ????????????? # ##################### ?? ? ?? | | ????????????? # ""????? | | ???????????? # "?"???? | | ????????????#### ^ ! ""??? | | ???????????? # !^ ?? | | ???????????"" + !/ g ? ??? | | ????????????" # ^ ! ######################?? | | ???????????"" # ###################?#### | | ????????????" # ######################## | | ????????????" # %@ %% u | | ????????????" # [ %% | | ????????????" # "T" g k | | ???????????? ####+############################## | | ?????????????### ####### ## | | ????????????#### """ """ #### # ## """ | | ??????????????## """ """ #### # ## """ | | ??????????????## """ """ #### # ## """ | | ??????????????## #### # ## | | ???????????????# #############+##########+ | | ???????????????#? ############ | | ???????????????? ############ | | ????????????????##################### | | ??????????????????################################ | | ???????????????????#######################????#?## | | ??????????????????#??##########################??# | | ???????????????????????#########?#######?##?####?? | | | | | | | | | | | | | | | | | +----------------------------------------------------+ Best States ------------- Heat Dissipation 31 Energy Generation 14 Energy Capacity 265 Matter Stores 300 Matter Capacity 300 Sight Range 18 Robot Scan Range 14 Terrain Scan Range 16 Terrain Scan Density 85 Armor Coverage 300 Resistance: KI 20 Resistance: TH 10 Evasion (%) 55 Target Analysis 5 Item Schematics ----------------- None Robot Schematics ------------------ None Fabricated ------------ Nothing Alien Tech Used ----------------- None Achievements -------------- Crack Shot Everything Is Under Control First Step to Greatness It's Just You Librarian One Hack Too Far Risk Taker Storm Trooper Tourist Uninvited Guest Unlikely Earthworm Challenges ------------ None Game ------ Seed SensorCryofiberReconstructor Manual? 0 Play Time 02:17:16 Cumulative 2.2 hours Start 2024.05.18 @ 16:10:56 End 2024.05.18 @ 18:45:29 Sessions 1 Manual Loads 0 Difficulty Rogue Special Mode None Game No. 1 Rogue 1 Adventurer 0 Explorer 0 Win Type - Total 0 Types 0/0/0/0/0/0/0/0/0 Lore% 8 Gallery% 2 Achievement% 4 Wizard Run 0 Options --------- Layout 1 ASCII 0 Keyboard 1 Movement Numpad Keybinds 0 Fullscreen 1 Font 24/Smallcaps Map View 50x35 Zoom Use 0% Tactical HUD 0 Map Filters NONE Filters NONE Steam 0 RUN: 6ec6d5eb-c56b-438b-8f6e-bebb61680704